Workbook

Sheet 2021
B2: РОДИТЕЛЬСКАЯ ПЛАТА
E3: с 12.05.2020г | Q3: с 1.01.2021г | AC3: % повышения
K4: для воспитанников, поступивших в детский сад до 1.01.2020 года с поправочным коэффициентом | W4: для воспитанников, поступивших в детский сад до 1.01.2020 года с поправочным коэффициентом
B5: Наименование | C5: Категория | D5: часы | E5: ВСЕГО | G5: в т.ч. | K5: ВСЕГО | M5: в т.ч. | Q5: ВСЕГО | S5: в т.ч. | W5: ВСЕГО | Y5: в т.ч.
G6: Содержание | I6: Питание | M6: Содержание | O6: Питание | S6: Содержание | U6: Питание | Y6: Содержание | AA6: Питание
D7: посещен. | E7: 1-3 | F7: 3-7 | G7: 1-3 | H7: 3-7 | I7: 1-3 | J7: 3-7 | K7: 1-3 | L7: 3-7 | M7: 1-3 | N7: 3-7 | O7: 1-3 | P7: 3-7 | Q7: 1-3 | R7: 3-7 | S7: 1-3 | T7: 3-7 | U7: 1-3 | V7: 3-7 | W7: 1-3 | X7: 3-7 | Y7: 1-3 | Z7: 3-7 | AA7: 1-3 | AB7: 3-7 | AC7: 1-3 | AD7: 3-7
B8: 1,3,5,6,Село | C8: д\сад | D8: 9 | E8: 2835 | F8: 3120 | G8: =E8-I8 -> 897 | H8: 678 | I8: 1938 | J8: 2442 | K8: =M8+O8 -> 2835 | L8: 2971 | M8: =G8 -> 897 | N8: =H8*0.78 -> 529 | O8: =I8 -> 1938 | P8: =J8 -> 2442 | Q8: 2948 | R8: 3245 | S8: =Q8-U8 -> 932 | T8: 705 | U8: 2016 | V8: 2540 | W8: =Y8+AA8 -> 2948 | X8: =Z8+AB8 -> 3089.9 | Y8: =S8 -> 932 | Z8: =T8*0.78 -> 550 | AA8: 2016 | AB8: 2540 | AC8: =(Q8-E8)*100/E8 -> 4.0 | AD8: =(R8-F8)*100/F8 -> 4.0
D9: 12 | E9: 3018 | F9: 3252 | G9: 1080 | H9: 810 | I9: 1938 | J9: 2442 | K9: 3018 | L9: 3220 | M9: =G9 -> 1080 | N9: =H9*0.96 -> 778 | O9: =I9 -> 1938 | P9: =J9 -> 2442 | Q9: 3139 | R9: 3382 | S9: 1123 | T9: 842 | U9: 2016 | V9: 2540 | W9: =Y9+AA9 -> 3139 | X9: =Z9+AB9 -> 3348.32 | Y9: =S9 -> 1123 | Z9: =T9*0.96 -> 808 | AA9: 2016 | AB9: 2540 | AC9: =(Q9-E9)*100/E9 -> 4.0 | AD9: 4.0
B10: 12,14,16,17,18,20,22,24,25,26,27,28,29,30,31,32,33,34,35,36,32,38,39 | C10: общеразвив. | D10: 12 | E10: 3018 | F10: 3252 | G10: 1080 | H10: 810 | I10: 1938 | J10: 2442 | Q10: 3139 | R10: 3382 | S10: 1123 | T10: 842 | U10: 2016 | V10: 2540 | AC10: 4.0 | AD10: 4.0
B11: 16,18,24,30,34,35,36,38,39,40 | C11: группы с общим недоразвитием речи | D11: 12 | F11: 3667 | H11: =F11-J11 -> 1225 | J11: 2442 | R11: 3814 | T11: =R11-V11 -> 1274 | V11: 2540 | AD11: 4.0
B12: 26 | C12: группы с частичной потерей зрения | D12: 12 | E12: 3662 | F12: 3667 | G12: =E12-I12 -> 1724 | H12: 1225 | I12: 1938 | J12: 2442 | Q12: 3808 | R12: 3814 | S12: =Q12-U12 -> 1792 | T12: 1274 | U12: 2016 | V12: 2540 | AC12: 4.0 | AD12: 4.0
B13: 28 | C13: аллергич. гр | D13: 12 | E13: 3662 | F13: 3667 | G13: 1724 | H13: 1225 | I13: 1938 | J13: 2442 | Q13: 3808 | R13: 3814 | S13: 1792 | T13: 1274 | U13: 2016 | V13: 2540 | AC13: 4.0 | AD13: 4.0
B14: 13 | C14: компенс.гр ( иные отклонения в развитиии) | D14: 12 | E14: 3662 | F14: 3667 | G14: 1724 | H14: 1225 | I14: 1938 | J14: 2442 | Q14: 3808 | R14: 3814 | S14: 1792 | T14: 1274 | U14: 2016 | V14: 2540 | AC14: 4.0 | AD14: 4.0
B16: 9 часовые - Д-дюм,Костенеево,Морты,Юраши,Альметьево,Армалы,Куклюк, Елово,Б-Шурняк,Яковлево
B17: 12 часовые -Танайка,Бехтерево,поспелово,Хлыстово,37,Гари
